[Event "10th LCC FIDE Open 2018"]
[Site "London"]
[Date "2018.12.09"]
[Round "1"]
[White "Millward, Kevin P"]
[Black "Gilevych, Artem"]
[Result "1/2-1/2"]
[ECO "A47"]
[WhiteElo "2012"]
[BlackElo "2409"]
[Annotator "ChessBase"]
[PlyCount "132"]
[EventDate "2018.12.09"]
[EventType "swiss"]
[EventCountry "ENG"]
[SourceTitle "playchess.com"]
[Source "ChessBase"]
[SourceQuality "1"]
[TimeControl "40/5400+30:1800+30"]

1. d4 {[%emt 0:01:47]} Nf6 {[%emt 0:00:35]} 2. Bf4 {[%emt 0:00:11]} c5 {[%emt 0:02:07]} 3. e3 {[%emt 0:01:01]} e6 {[%emt 0:07:26]} 4. c3 {[%emt 0:05:46]} Be7 {[%emt 0:01:54]} 5. Nd2 {[%emt 0:00:55]} b6 {[%emt 0:00:23]} 6. h3 {[%emt 0:05:09]} O-O {[%emt 0:00:26]} 7. Ngf3 {[%emt 0:03:02]} d6 {[%emt 0:04:56]} 8. Bd3 {[%emt 0:04:06]} Ba6 {[%emt 0:00:08]} 9. Bxa6 {[%emt 0:04:59]} Nxa6 {[%emt 0:00:08]} 10. O-O {[%emt 0:00:56]} cxd4 {[%emt 0:02:39]} 11. exd4 {[%emt 0:07:33]} b5 {[%emt 0:04:35]} 12. a4 {[%emt 0:08:02]} b4 {[%emt 0:00:30]} 13. c4 {[%emt 0:05:14]} Nb8 {[%emt 0:08:11]} 14. Qe2 {[%emt 0:10:44]} Nc6 {[%emt 0:00:24]} 15. Rfd1 {[%emt 0:05:28]} Re8 {[%emt 0:07:23]} 16. Ne4 {[%emt 0:19:21]} Rc8 {[%emt 0:13:33]} 17. Ned2 {[%emt 0:00:00]} Qa5 {[%emt 0:09:18]} 18. Bh2 {[%emt 0:00:00]} Bf8 {[%emt 0:02:11]} 19. Nb3 {[%emt 0:00:48]} Qa6 {[%emt 0:01:05]} 20. Qf1 {[%emt 0:05:38]} e5 {[%emt 0:03:02]} 21. d5 {[%emt 0:02:32]} Na5 {[%emt 0:02:14]} 22. Nxa5 {[%emt 0:00:10]} Qxa5 {[%emt 0:00:04]} 23. Nd2 {[%emt 0:02:51]} Nd7 {[%emt 0:05:05]} 24. b3 {[%emt 0:02:25]} f5 {[%emt 0:00:10]} 25. f3 {[%emt 0:01:53]} g6 {[%emt 0:03:30]} 26. Kh1 {[%emt 0:00:10]} Bg7 {[%emt 0:09:42]} 27. Rab1 {[%emt 0:00:05]} Qd8 {[%emt 0:00:41]} 28. Bg1 {[%emt 0:01:22]} a5 {[%emt 0:00:06]} 29. Qd3 {[%emt 0:00:54]} Bh6 {[%emt 0:01:15]} 30. Re1 {[%emt 0:00:39]} Bf4 {[%emt 0:00:49]} 31. Nf1 {[%emt 0:00:48]} Qg5 {[%emt 0:03:45]} 32. Bf2 {[%emt 0:00:44]} Qf6 {[%emt 0:03:34]} 33. Re2 {[%emt 0:00:28]} h5 {[%emt 0:00:56]} 34. g3 {[%emt 0:00:34]} Bh6 {[%emt 0:00:24]} 35. Kg2 {[%emt 0:00:31]} Rf8 {[%emt 0:00:57]} 36. Qc2 {[%emt 0:00:21]} h4 {[%emt 0:01:29]} 37. gxh4 {[%emt 0:00:44]} e4 {[%emt 0:00:33]} 38. fxe4 {[%emt 0:00:29]} f4 {[%emt 0:01:11]} 39. Ree1 {[%emt 0:00:32]} g5 {[%emt 0:00:14]} 40. Nh2 {[%emt 0:00:31]} Ne5 {[%emt 0:01:21]} 41. Kh1 {[%emt 0:13:08]} Rc7 {[%emt 0:01:58]} 42. Rg1 {[%emt 0:04:19]} Rg7 {[%emt 0:05:28]} 43. Bd4 {[%emt 0:03:41]} g4 {[%emt 0:04:28]} 44. Nxg4 {[%emt 0:03:33]} Qxh4 {[%emt 0:00:23]} 45. Nxh6+ {[%emt 0:02:50]} Qxh6 {[%emt 0:02:12]} 46. Rxg7+ {[%emt 0:01:07]} Kxg7 {[%emt 0:00:10]} 47. Bxe5+ {[%emt 0:01:20]} dxe5 {[%emt 0:06:00]} 48. Qg2+ {[%emt 0:00:51]} Kf6 {[%emt 0:03:16]} 49. Rg1 {[%emt 0:00:45]} f3 {[%emt 0:05:38]} 50. Rf1 {[%emt 0:01:40]} Ke7 {[%emt 0:01:34]} 51. Rxf3 {[%emt 0:00:08]} Qc1+ {[%emt 0:01:04]} 52. Kh2 {[%emt 0:00:09]} Rxf3 {[%emt 0:00:24]} 53. Qxf3 {[%emt 0:00:03]} Qd2+ {[%emt 0:00:09]} 54. Kg3 {[%emt 0:02:00]} Qg5+ {[%emt 0:00:45]} 55. Kf2 {[%emt 0:00:35]} Qd2+ {[%emt 0:00:11]} 56. Qe2 {[%emt 0:01:12]} Qf4+ {[%emt 0:00:15]} 57. Kg2 {[%emt 0:01:00]} Qg5+ {[%emt 0:00:04]} 58. Kf1 {[%emt 0:00:32]} Qf4+ {[%emt 0:00:47]} 59. Kg1 {[%emt 0:00:37]} Qg3+ {[%emt 0:00:28]} 60. Qg2 {[%emt 0:00:15]} Qxb3 {[%emt 0:00:06]} 61. Qg7+ {[%emt 0:00:17]} Kd6 {[%emt 0:00:16]} 62. Qf8+ {[%emt 0:00:20]} Kd7 {[%emt 0:00:13]} 63. Qf5+ {[%emt 0:00:40]} Kd6 {[%emt 0:00:04]} 64. Qf8+ {[%emt 0:00:28]} Kd7 {[%emt 0:00:05]} 65. Qf7+ {[%emt 0:00:42]} Kd6 {[%emt 0:00:14]} 66. Qf8+ {[%emt 0:00:51]} Kd7 {[%emt 0:01:08]} 1/2-1/2

[Event "10th LCC FIDE Open 2018"]
[Site "London"]
[Date "2018.12.09"]
[Round "1"]
[White "Mueller, Jens"]
[Black "D'costa, Lorin Ar"]
[Result "0-1"]
[ECO "A45"]
[WhiteElo "1981"]
[BlackElo "2390"]
[Annotator "NA"]
[PlyCount "58"]
[EventDate "2018.12.09"]
[EventType "swiss"]
[EventCountry "ENG"]
[SourceTitle "playchess.com"]
[Source "ChessBase"]
[SourceQuality "1"]
[TimeControl "40/5400+30:1800+30"]

1. d4 {[%emt 0:00:00]} Nf6 {[%emt 0:01:11]} 2. Bf4 {[%emt 0:00:00]} g6 {[%emt 0:01:21]} 3. Nc3 {[%emt 0:00:11]} d5 {[%emt 0:01:56] A45: Trompowsky Attack} 4. e3 {[%emt 0:00:23]} Bg7 {[%emt 0:00:41]} 5. h4 {[%emt 0:00:40]} c6 {[%emt 0:11:58]} 6. Be2 {[%emt 0:02:15]} h6 {[%emt 0:01:27]} 7. Nf3 {[%emt 0:02:34]} Qa5 {[%emt 0:03:06]} 8. Nd2 $146 {[%emt 0:01:59]} ({Predecessor:} 8. Qd2 Bg4 9. Ne5 Bxe2 10. Qxe2 Qa6 11. Qf3 {½-½ (44) Eljanov,P (2765)-Radjabov,T (2726) Shamkir 2016}) 8... Nbd7 {[%emt 0:05:13]} 9. Nb3 {[%emt 0:16:32]} Qb6 {[%emt 0:01:56]} 10. a3 {[%emt 0:03:30]} a5 {[%emt 0:02:42]} 11. Na4 {[%emt 0:03:25]} Qa7 {[%emt 0:08:51]} 12. O-O {[%emt 0:03:47]} O-O {[%emt 0:07:30]} 13. Nbc5 {[%emt 0:13:46]} b5 {[%emt 0:06:35]} 14. Nxd7 {[%emt 0:00:36]} Nxd7 {[%emt 0:00:11]} 15. Nc3 {[%emt 0:00:15]} e5 {[%emt 0:01:00]} 16. dxe5 {[%emt 0:00:48]} Nxe5 {[%emt 0:00:12]} 17. Rb1 {[%emt 0:17:41]} Qe7 {[%emt 0:05:41]} 18. Bg3 {[%emt 0:12:41]} h5 {[%emt 0:04:10]} 19. Bd3 {[%emt 0:06:30]} Ng4 {[%emt 0:13:18]} 20. Qf3 {[%emt 0:04:38]} Bd7 {[%emt 0:06:15]} 21. e4 {[%emt 0:03:01] [#]} d4 $1 {[%emt 0:02:23]} 22. Ne2 {[%emt 0:00:06]} Bf6 {[%emt 0:05:04]} 23. Rbe1 {[%emt 0:01:23]} Rad8 {[%emt 0:01:52]} ({Worse is} 23... Bxh4 24. Nxd4 Bxg3 25. Qxg3 $11) (23... Ne5 $19 24. Qf4 c5) 24. e5 {[%emt 0:02:24]} Nxe5 {[%emt 0:01:17]} 25. Bxe5 {[%emt 0:00:06]} Bxe5 {[%emt 0:00:23]} 26. g3 {[%emt 0:00:10]} Qd6 {[%emt 0:01:20]} 27. Nf4 {[%emt 0:00:20]} Rfe8 {[%emt 0:01:37]} 28. c4 $2 {[%emt 0:01:15]} (28. b4) 28... dxc3 $19 {[%emt 0:00:32]} 29. bxc3 {[%emt 0:00:58]} Bg4 {[%emt 0:00:53]} 0-1

[Event "10th LCC FIDE Open 2018"]
[Site "London"]
[Date "2018.12.09"]
[Round "1"]
[White "Mueller, Jens"]
[Black "D`Costa, Lorin A R"]
[Result "0-1"]
[ECO "A45"]
[WhiteElo "1981"]
[BlackElo "2390"]
[Annotator "ChessBase"]
[PlyCount "58"]
[EventDate "2018.12.09"]
[EventType "swiss"]
[EventCountry "ENG"]
[SourceTitle "playchess.com"]
[Source "ChessBase"]
[SourceQuality "1"]
[TimeControl "40/5400+30:1800+30"]

1. d4 {[%emt 0:00:00]} Nf6 {[%emt 0:01:11]} 2. Bf4 {[%emt 0:00:00]} g6 {[%emt 0:01:21]} 3. Nc3 {[%emt 0:00:11]} d5 {[%emt 0:01:56]} 4. e3 {[%emt 0:00:23]} Bg7 {[%emt 0:00:41]} 5. h4 {[%emt 0:00:40]} c6 {[%emt 0:11:58]} 6. Be2 {[%emt 0:02:15]} h6 {[%emt 0:01:27]} 7. Nf3 {[%emt 0:02:34]} Qa5 {[%emt 0:03:06]} 8. Nd2 {[%emt 0:01:59]} Nbd7 {[%emt 0:05:13]} 9. Nb3 {[%emt 0:16:32]} Qb6 {[%emt 0:01:56]} 10. a3 {[%emt 0:03:30]} a5 {[%emt 0:02:42]} 11. Na4 {[%emt 0:03:25]} Qa7 {[%emt 0:08:51]} 12. O-O {[%emt 0:03:47]} O-O {[%emt 0:07:30]} 13. Nbc5 {[%emt 0:13:46]} b5 {[%emt 0:06:35]} 14. Nxd7 {[%emt 0:00:36]} Nxd7 {[%emt 0:00:11]} 15. Nc3 {[%emt 0:00:15]} e5 {[%emt 0:01:00]} 16. dxe5 {[%emt 0:00:48]} Nxe5 {[%emt 0:00:12]} 17. Rb1 {[%emt 0:17:41]} Qe7 {[%emt 0:05:41]} 18. Bg3 {[%emt 0:12:41]} h5 {[%emt 0:04:10]} 19. Bd3 {[%emt 0:06:30]} Ng4 {[%emt 0:13:18]} 20. Qf3 {[%emt 0:04:38]} Bd7 {[%emt 0:06:15]} 21. e4 {[%emt 0:03:01]} d4 {[%emt 0:02:23]} 22. Ne2 {[%emt 0:00:06]} Bf6 {[%emt 0:05:04]} 23. Rbe1 {[%emt 0:01:23]} Rad8 {[%emt 0:01:52]} 24. e5 {[%emt 0:02:24]} Nxe5 {[%emt 0:01:17]} 25. Bxe5 {[%emt 0:00:06]} Bxe5 {[%emt 0:00:23]} 26. g3 {[%emt 0:00:10]} Qd6 {[%emt 0:01:20]} 27. Nf4 {[%emt 0:00:20]} Rfe8 {[%emt 0:01:37]} 28. c4 {[%emt 0:01:15]} dxc3 {[%emt 0:00:32]} 29. bxc3 {[%emt 0:00:58]} Bg4 {[%emt 0:00:53]} 0-1

[Event "10th LCC FIDE Open 2018"]
[Site "London"]
[Date "2018.12.09"]
[Round "1"]
[White "Penna, Tommaso"]
[Black "Cherniaev, Alexander"]
[Result "0-1"]
[ECO "B00"]
[WhiteElo "1963"]
[BlackElo "2393"]
[Annotator "NA"]
[PlyCount "61"]
[EventDate "2018.12.09"]
[EventType "swiss"]
[EventCountry "ENG"]
[SourceTitle "playchess.com"]
[Source "ChessBase"]
[SourceQuality "1"]
[TimeControl "40/5400+30:1800+30"]

1. e4 {[%emt 0:00:00]} e6 {[%emt 0:00:15]} 2. d4 {[%emt 0:00:00]} b6 {[%emt 0:00:05]} 3. Bd3 {[%emt 0:00:00]} Bb7 {[%emt 0:00:07]} 4. Nf3 {[%emt 0:00:00]} d6 {[%emt 0:00:07]} 5. O-O {[%emt 0:05:12]} Nd7 {[%emt 0:00:04]} 6. c4 {[%emt 0:03:51]} Ne7 {[%emt 0:00:31] B00: Queen's Fianchetto Defence, Nimzowitsch Defence} (6... g6 7. Nc3 Bg7 8. b3 Ne7 9. Bb2 h6 10. Qd2 O-O 11. d5 a5 12. Rac1 e5 13. a3 f5 14. b4 {0-1 (33) Antipov,M (2457)-Epishin,V (2574) St Petersburg 2012}) 7. Nc3 {[%emt 0:00:07]} g6 {[%emt 0:00:07]} 8. Qe2 {[%emt 0:03:57]} Bg7 {[%emt 0:00:09]} 9. Rd1 $146 {[%emt 0:00:09]} ({Predecessor:} 9. Be3 h6 10. Rfd1 O-O 11. Qd2 Kh7 12. Ne1 e5 13. dxe5 Nxe5 {½-½ (45) Higatsberger,M (2148)-Sadilek,M (2227) Austria 2015}) 9... h6 {[%emt 0:01:04]} 10. Bc2 {[%emt 0:08:16]} O-O {[%emt 0:05:50]} 11. Rb1 {[%emt 0:03:39]} Kh7 {[%emt 0:14:55]} 12. h4 {[%emt 0:05:40]} e5 {[%emt 0:06:24]} 13. d5 {[%emt 0:02:04]} Nf6 {[%emt 0:12:11]} 14. b4 {[%emt 0:01:40]} Bc8 {[%emt 0:00:09]} 15. Ne1 {[%emt 0:03:05]} Nh5 {[%emt 0:05:29]} 16. g3 {[%emt 0:04:09]} f5 {[%emt 0:03:14]} 17. exf5 {[%emt 0:00:30]} Nxf5 {[%emt 0:00:30]} 18. Ne4 {[%emt 0:07:17]} Nf6 {[%emt 0:09:41]} 19. h5 {[%emt 0:00:30]} gxh5 {[%emt 0:00:30]} 20. Nf3 {[%emt 0:00:30]} Kg8 {[%emt 0:00:30]} 21. Kg2 {[%emt 0:00:30]} a5 {[%emt 0:00:30]} 22. a3 {[%emt 0:00:30]} axb4 {[%emt 0:00:30]} 23. axb4 {[%emt 0:00:30]} h4 {[%emt 0:00:30]} 24. gxh4 {[%emt 0:00:30]} Ra2 {[%emt 0:00:30]} 25. Qd3 {[%emt 0:44:39]} Nxe4 {[%emt 0:21:40]} 26. Qxe4 {[%emt 0:00:10]} Rxc2 {[%emt 0:00:08]} 27. Qxc2 {[%emt 0:00:30]} Nxh4+ {[%emt 0:00:30]} 28. Nxh4 {[%emt 0:00:30]} Qxh4 {[%emt 0:00:30]} 29. Rb3 {[%emt 0:00:16]} Bf5 {[%emt 0:00:00]} 30. Qe2 {[%emt 0:01:00]} Bg4 $19 {[%emt 0:00:04] Skewer} ({Weaker is} 30... Be4+ 31. f3 $15) 31. f3 {[%emt 0:02:50]} 0-1

[Event "10th LCC FIDE Open 2018"]
[Site "London"]
[Date "2018.12.09"]
[Round "1"]
[White "De Coverly, Roger D"]
[Black "Mirzoyan, Davit T."]
[Result "0-1"]
[ECO "C77"]
[WhiteElo "1951"]
[BlackElo "2382"]
[Annotator "ChessBase"]
[PlyCount "128"]
[EventDate "2018.12.09"]
[EventType "swiss"]
[EventCountry "ENG"]
[SourceTitle "playchess.com"]
[Source "ChessBase"]
[SourceQuality "1"]
[TimeControl "40/5400+30:1800+30"]

1. e4 {[%emt 0:00:00]} e5 {[%emt 0:00:00]} 2. Nf3 {[%emt 0:00:00]} Nc6 {[%emt 0:00:00]} 3. Bb5 {[%emt 0:00:00]} a6 {[%emt 0:00:00]} 4. Ba4 {[%emt 0:00:04]} Nf6 {[%emt 0:00:03]} 5. d3 {[%emt 0:00:13]} Bc5 {[%emt 0:04:40]} 6. O-O {[%emt 0:00:23]} b5 {[%emt 0:10:35]} 7. Bb3 {[%emt 0:00:46]} d6 {[%emt 0:00:02]} 8. Nc3 {[%emt 0:04:26]} h6 {[%emt 0:24:54]} 9. Be3 {[%emt 0:04:11]} Bg4 {[%emt 0:13:39]} 10. Ne2 {[%emt 0:04:59]} Bxf3 {[%emt 0:03:33]} 11. gxf3 {[%emt 0:00:08]} Na5 {[%emt 0:00:08]} 12. d4 {[%emt 0:02:30]} exd4 {[%emt 0:09:07]} 13. Nxd4 {[%emt 0:00:34]} Bxd4 {[%emt 0:00:12]} 14. Bxd4 {[%emt 0:01:21]} Nxb3 {[%emt 0:00:05]} 15. axb3 {[%emt 0:01:44]} Nh5 {[%emt 0:00:53]} 16. Be3 {[%emt 0:01:50]} O-O {[%emt 0:00:37]} 17. Qd5 {[%emt 0:03:52]} Qh4 {[%emt 0:05:48]} 18. Qf5 {[%emt 0:01:26]} Rfe8 {[%emt 0:00:35]} 19. Qg4 {[%emt 0:01:27]} Qxg4+ {[%emt 0:00:41]} 20. fxg4 {[%emt 0:00:07]} Nf6 {[%emt 0:00:03]} 21. f3 {[%emt 0:02:57]} d5 {[%emt 0:01:54]} 22. Bd4 {[%emt 0:01:20]} dxe4 {[%emt 0:00:55]} 23. Bxf6 {[%emt 0:00:21]} gxf6 {[%emt 0:00:02]} 24. fxe4 {[%emt 0:00:43]} Rxe4 {[%emt 0:01:13]} 25. Rxf6 {[%emt 0:02:14]} Rxg4+ {[%emt 0:00:07]} 26. Kf2 {[%emt 0:01:51]} Rd8 {[%emt 0:13:01]} 27. Kf3 {[%emt 0:01:55]} Rh4 {[%emt 0:00:00]} 28. Kg3 {[%emt 0:02:58]} Rh5 {[%emt 0:00:01]} 29. Raf1 {[%emt 0:05:11]} Rd6 {[%emt 0:05:46]} 30. h4 {[%emt 0:03:38]} Rc5 {[%emt 0:04:12]} 31. c3 {[%emt 0:05:42]} Rd3+ {[%emt 0:00:01]} 32. R1f3 {[%emt 0:00:58]} Rxf3+ {[%emt 0:01:32]} 33. Kxf3 {[%emt 0:00:11]} a5 {[%emt 0:00:51]} 34. Rxh6 {[%emt 0:01:11]} b4 {[%emt 0:01:02]} 35. c4 {[%emt 0:01:49]} Rf5+ {[%emt 0:00:02]} 36. Ke3 {[%emt 0:00:35]} f6 {[%emt 0:00:48]} 37. Rg6+ {[%emt 0:01:29]} Kf7 {[%emt 0:00:01]} 38. Rg2 {[%emt 0:01:05]} Rf1 {[%emt 0:01:14]} 39. Rh2 {[%emt 0:01:50]} Kg6 {[%emt 0:00:19]} 40. Ke2 {[%emt 0:02:18]} Rg1 {[%emt 0:00:48]} 41. h5+ {[%emt 0:33:11]} Kh6 {[%emt 0:30:20]} 42. Rf2 {[%emt 0:00:17]} Kg7 {[%emt 0:00:00]} 43. h6+ {[%emt 0:00:00]} Kg6 {[%emt 0:00:00]} 44. Rh2 {[%emt 0:00:00]} Kh7 {[%emt 0:00:00]} 45. Kd3 {[%emt 0:00:00]} Rg6 {[%emt 0:00:00]} 46. Kd4 {[%emt 0:00:00]} Rxh6 {[%emt 0:00:00]} 47. Re2 {[%emt 0:00:00]} Kg6 {[%emt 0:00:00]} 48. Kc5 {[%emt 0:00:00]} f5 {[%emt 0:00:00]} 49. Kb5 {[%emt 0:00:00]} f4 {[%emt 0:00:00]} 50. Kxa5 {[%emt 0:00:00]} Kf5 {[%emt 0:00:00]} 51. Kxb4 {[%emt 0:00:00]} f3 {[%emt 0:00:00]} 52. Rd2 {[%emt 0:00:00]} Ke4 {[%emt 0:01:29]} 53. Kc3 {[%emt 0:00:00]} Rf6 {[%emt 0:01:21]} 54. b4 {[%emt 0:01:38]} f2 {[%emt 0:02:02]} 55. Re2+ {[%emt 0:00:09]} Kf3 {[%emt 0:00:05]} 56. Rxf2+ {[%emt 0:00:06]} Kxf2 {[%emt 0:00:03]} 57. Kd4 {[%emt 0:00:16]} Ke2 {[%emt 0:02:34]} 58. b5 {[%emt 0:02:02]} Kd2 {[%emt 0:00:51]} 59. c5 {[%emt 0:02:22]} Kc2 {[%emt 0:00:12]} 60. Kd5 {[%emt 0:01:22]} Kb3 {[%emt 0:00:31]} 61. c6 {[%emt 0:05:00]} Kb4 {[%emt 0:00:11]} 62. b6 {[%emt 0:03:34]} Rd6+ {[%emt 0:00:11]} 63. Ke5 {[%emt 0:00:23]} Rxc6 {[%emt 0:00:01]} 64. b7 {[%emt 0:00:24]} Rb6 {[%emt 0:00:01]} 0-1

[Event "10th LCC FIDE Open 2018"]
[Site "London"]
[Date "2018.12.09"]
[Round "1"]
[White "Cavendish, Joshua Z"]
[Black "Gschnitzer, Adrian"]
[Result "0-1"]
[ECO "B31"]
[WhiteElo "1944"]
[BlackElo "2374"]
[Annotator "NA"]
[PlyCount "48"]
[EventDate "2018.12.09"]
[EventType "swiss"]
[EventCountry "ENG"]
[SourceTitle "playchess.com"]
[Source "ChessBase"]
[SourceQuality "1"]
[TimeControl "40/5400+30:1800+30"]

1. e4 {[%emt 0:00:00]} c5 {[%emt 0:02:19]} 2. Nf3 {[%emt 0:00:00]} Nc6 {[%emt 0:00:09]} 3. Bb5 {[%emt 0:00:00]} g6 {[%emt 0:00:08]} 4. Bxc6 {[%emt 0:00:29]} bxc6 {[%emt 0:00:06]} 5. O-O {[%emt 0:00:15]} Bg7 {[%emt 0:00:06]} 6. Re1 {[%emt 0:00:24]} Nh6 {[%emt 0:00:10]} 7. c3 {[%emt 0:00:15]} O-O {[%emt 0:00:09]} 8. d4 {[%emt 0:00:22]} cxd4 {[%emt 0:00:08]} 9. cxd4 {[%emt 0:00:06]} d5 {[%emt 0:00:08]} 10. e5 {[%emt 0:00:20]} f6 {[%emt 0:00:12]} 11. h3 {[%emt 0:00:11]} fxe5 {[%emt 0:02:13]} 12. Nxe5 {[%emt 0:00:47]} Qb6 {[%emt 0:00:30]} 13. b3 {[%emt 0:00:41]} Nf7 {[%emt 0:05:47]} 14. Bf4 {[%emt 0:00:36]} c5 {[%emt 0:03:12]} 15. Nc3 {[%emt 0:11:05]} cxd4 {[%emt 0:05:20]} 16. Na4 {[%emt 0:03:45]} Qf6 {[%emt 0:13:28]} 17. Qxd4 {[%emt 0:06:40]} Qh4 {[%emt 0:21:24]} 18. Rac1 {[%emt 0:24:27]} Nxe5 {[%emt 0:02:30]} 19. Qxd5+ {[%emt 0:04:19]} e6 {[%emt 0:00:14]} 20. Qxa8 {[%emt 0:01:02]} Qxf4 {[%emt 0:00:10]} 21. Qxa7 {[%emt 0:02:56]} Nf3+ {[%emt 0:03:29]} 22. gxf3 {[%emt 0:01:54]} Bd4 {[%emt 0:00:11]} 23. Qa8 {[%emt 0:07:29]} Qg3+ {[%emt 0:00:53]} 24. Kh1 {[%emt 0:00:38]} Bxf2 {[%emt 0:00:12]} 0-1

[Event "10th LCC FIDE Open 2018"]
[Site "London"]
[Date "2018.12.09"]
[Round "1"]
[White "Royal, Shreyas"]
[Black "Megalios, Konstantinos"]
[Result "0-1"]
[ECO "E00"]
[WhiteElo "1930"]
[BlackElo "2365"]
[Annotator "NA"]
[PlyCount "50"]
[EventDate "2018.12.09"]
[EventType "swiss"]
[EventCountry "ENG"]
[SourceTitle "playchess.com"]
[Source "ChessBase"]
[SourceQuality "1"]
[TimeControl "40/5400+30:1800+30"]

1. d4 {[%emt 0:00:32]} Nf6 {[%emt 0:00:00]} 2. c4 {[%emt 0:00:31]} e6 {[%emt 0:00:00]} 3. g3 {[%emt 0:01:12]} Bb4+ {[%emt 0:00:00]} 4. Bd2 {[%emt 0:00:46]} a5 {[%emt 0:00:08]} 5. Bg2 {[%emt 0:00:58]} d6 {[%emt 0:00:22]} 6. e4 {[%emt 0:02:16]} e5 {[%emt 0:00:57]} 7. d5 {[%emt 0:02:34]} Nbd7 {[%emt 0:07:31]} 8. Ne2 {[%emt 0:02:21]} Nc5 {[%emt 0:10:52]} 9. Qc2 {[%emt 0:03:21]} Bxd2+ {[%emt 0:00:29]} 10. Nxd2 {[%emt 0:03:12]} h5 {[%emt 0:00:05]} 11. O-O {[%emt 0:15:51]} h4 {[%emt 0:00:33]} 12. Rab1 {[%emt 0:02:30]} hxg3 {[%emt 0:05:36]} 13. hxg3 {[%emt 0:01:53]} Ng4 {[%emt 0:00:31]} 14. Nf3 {[%emt 0:06:05]} Qf6 {[%emt 0:00:45]} 15. Nc3 {[%emt 0:02:26]} Bd7 {[%emt 0:03:14]} 16. b3 {[%emt 0:02:06]} Ke7 {[%emt 0:07:10]} 17. a3 {[%emt 0:05:47]} Rh5 {[%emt 0:01:27]} 18. b4 {[%emt 0:01:42]} Na6 {[%emt 0:07:18]} 19. Rfd1 {[%emt 0:04:04]} Rah8 {[%emt 0:03:54]} 20. Ne2 {[%emt 0:04:39]} Rh1+ {[%emt 0:02:22]} 21. Bxh1 {[%emt 0:00:42]} Rxh1+ {[%emt 0:00:09]} 22. Kg2 {[%emt 0:00:25]} Rh2+ {[%emt 0:00:08]} 23. Kf1 {[%emt 0:01:18]} Ne3+ {[%emt 0:01:34]} 24. fxe3 {[%emt 0:00:23]} Qxf3+ {[%emt 0:00:08]} 25. Ke1 {[%emt 0:00:06]} Qf2+ {[%emt 0:00:26]} 0-1

[Event "10th LCC FIDE Open 2018"]
[Site "London"]
[Date "2018.12.09"]
[Round "1"]
[White "Cramling Bellon, Anna"]
[Black "Mihajlov, Sebastian"]
[Result "0-1"]
[ECO "D17"]
[WhiteElo "1927"]
[BlackElo "2358"]
[Annotator "NA"]
[PlyCount "114"]
[EventDate "2018.12.09"]
[EventType "swiss"]
[EventCountry "ENG"]
[SourceTitle "playchess.com"]
[Source "ChessBase"]
[SourceQuality "1"]
[TimeControl "40/5400+30:1800+30"]

1. d4 {[%emt 0:00:00]} Nf6 {[%emt 0:04:13]} 2. c4 {[%emt 0:00:00]} c6 {[%emt 0:00:22]} 3. Nc3 {[%emt 0:00:00]} d5 {[%emt 0:00:05]} 4. Nf3 {[%emt 0:00:10]} dxc4 {[%emt 0:00:51]} 5. a4 {[%emt 0:00:15]} Bf5 {[%emt 0:00:07]} 6. Nh4 {[%emt 0:00:15]} Bc8 {[%emt 0:00:35]} 7. Nf3 {[%emt 0:01:07]} Bf5 {[%emt 0:05:27]} 8. Nh4 {[%emt 0:00:14]} Bd7 {[%emt 0:00:31]} 9. e3 {[%emt 0:00:49] D17: Slav Defence: 5 a4 Bf5: Lines with 6 Nh4 and 6 Ne5} b5 {[%emt 0:02:11]} 10. Nf3 {[%emt 0:01:00]} e6 {[%emt 0:01:32]} 11. Ne5 {[%emt 0:00:21]} Qb6 $146 {[%emt 0:03:47]} ({Predecessor:} 11... a5 12. Qf3 Ra7 13. g4 Bc8 14. Nxc6 Nxc6 15. Qxc6+ Rd7 16. Qxb5 Nxg4 {0-1 (24) Schreiner,P (2480)-Shirov,A (2630) Germany 2017}) 12. Qf3 {[%emt 0:09:05]} Qa5 {[%emt 0:03:17]} 13. Bd2 {[%emt 0:24:59]} b4 {[%emt 0:05:34]} 14. Nxc4 {[%emt 0:02:37]} Qf5 {[%emt 0:00:05]} 15. Qxf5 {[%emt 0:13:06]} exf5 {[%emt 0:00:02]} 16. Na2 {[%emt 0:01:11]} a5 {[%emt 0:01:28]} 17. Nc1 {[%emt 0:05:13]} Be6 {[%emt 0:00:06]} 18. Bd3 {[%emt 0:02:55]} Be7 {[%emt 0:06:45]} 19. Nb3 {[%emt 0:05:37]} Bxc4 {[%emt 0:02:49]} 20. Bxc4 {[%emt 0:00:04]} O-O {[%emt 0:00:04]} 21. Rc1 {[%emt 0:02:23]} g6 {[%emt 0:04:40]} 22. O-O {[%emt 0:02:20]} Nbd7 {[%emt 0:03:52]} 23. Be2 {[%emt 0:01:11]} Rfc8 {[%emt 0:00:05]} 24. Bf3 {[%emt 0:08:55]} Ne4 {[%emt 0:01:00]} 25. Rfd1 {[%emt 0:07:37]} Nb6 {[%emt 0:11:48]} 26. Bxe4 {[%emt 0:03:35]} fxe4 {[%emt 0:00:06]} 27. Rc2 {[%emt 0:00:02]} Kf8 {[%emt 0:06:40]} 28. f3 {[%emt 0:02:14]} f5 {[%emt 0:10:32]} 29. fxe4 {[%emt 0:00:04]} fxe4 {[%emt 0:00:02]} 30. Ra1 {[%emt 0:01:36]} Ke8 {[%emt 0:00:28]} 31. Nc5 {[%emt 0:02:10]} (31. Be1 $14) 31... Bxc5 {[%emt 0:00:07]} 32. Rxc5 {[%emt 0:00:10]} Kd7 {[%emt 0:01:31]} 33. b3 {[%emt 0:00:39]} Rf8 {[%emt 0:00:14]} 34. Rf1 {[%emt 0:03:41]} (34. Rac1 $14) 34... Rxf1+ {[%emt 0:00:43]} 35. Kxf1 {[%emt 0:00:01]} Rf8+ {[%emt 0:00:15]} 36. Ke2 {[%emt 0:00:01]} Rf5 {[%emt 0:00:06]} 37. Rc1 {[%emt 0:01:19]} Nd5 {[%emt 0:00:44]} 38. Be1 {[%emt 0:00:44]} Rg5 {[%emt 0:00:29]} 39. g3 {[%emt 0:00:56]} (39. Kf2 $15) 39... Rh5 {[%emt 0:01:29]} 40. h4 {[%emt 0:00:25]} Rf5 {[%emt 0:00:55]} 41. Bd2 {[%emt 0:30:45]} h5 {[%emt 0:33:25]} 42. Rg1 {[%emt 0:00:00]} Nf6 {[%emt 0:00:00]} 43. Rg2 {[%emt 0:00:00]} Ng4 {[%emt 0:00:00]} 44. Bc1 {[%emt 0:00:00]} Kd6 {[%emt 0:00:00]} 45. Bd2 {[%emt 0:00:00]} Rf3 {[%emt 0:00:00]} 46. Bc1 {[%emt 0:00:00]} Nh6 {[%emt 0:00:00]} 47. Rg1 $2 {[%emt 0:00:00]} (47. Rf2 {was the only chance.} Rxg3 48. Rf6+ Kc7 49. Rf4) 47... Nf5 {[%emt 0:00:00]} 48. g4 {[%emt 0:00:00]} Ng3+ {[%emt 0:00:00]} 49. Ke1 {[%emt 0:00:00]} hxg4 {[%emt 0:00:00]} 50. Bd2 {[%emt 0:00:00]} (50. Rg2 $142 Kd5 51. Rg1) 50... Ke6 {[%emt 0:00:00]} 51. Kd1 $19 {[%emt 0:00:00]} Kf5 {[%emt 0:00:00]} 52. Ke1 {[%emt 0:00:00]} Nh5 {[%emt 0:00:00]} 53. Ke2 {[%emt 0:00:37]} g3 {[%emt 0:00:00]} 54. Be1 {[%emt 0:01:22]} Kg4 {[%emt 0:00:00]} 55. Rh1 {[%emt 0:00:11]} g2 {[%emt 0:00:00]} 56. Rg1 {[%emt 0:00:06]} Kh3 {[%emt 0:00:00]} 57. Bf2 {[%emt 0:00:12]} Ng3+ {[%emt 0:00:00]} 0-1